[Event "EICC 2025"]
[Site "Eforie-Nord"]
[Date "2025.03.16"]
[Round "2.4"]
[White "Dardha, Daniel"]
[Black "Ioannidis, Evgenios"]
[Result "1-0"]
[Annotator "TA"]
[ECO "C55"]
[WhiteElo "2665"]
[BlackElo "2484"]
[PlyCount "69"]
[EventDate "2025.03.14"]
[EventType "swiss"]
[EventCountry "ROU"]
[SourceTitle "playchess.com"]
[Source "ChessBase"]
[SourceQuality "1"]
[TimeControl "40/5400+30:1800+30"]

{[%evp 11,69,19,18,15,28,21,27,22,22,25,43,31,44,46,57,24,59,71,72,71,73,85,74,67,76,75,75,93,79,90,90,97,150,148,192,191,181,170,189,195,178,167,169,111,244,268,252,239,243,253,948,950,1204,824,794,742,1802,1653,1214,1150]} 1. e4 {[%emt 0:00:06]} e5 {[%emt 0:00:12]} 2. Nf3 {[%emt 0:00:06]} Nc6 {[%emt 0:00:06]} 3. Bc4 {[%emt 0:00:14]} Nf6 {[%emt 0:00:38]} 4. d3 {[%emt 0:00:08]} Be7 {[%emt 0:00:15]} 5. O-O {[%emt 0:00:56]} O-O {[%emt 0:00:12]} 6. Nc3 {[%emt 0:03:03]} d6 {[%emt 0:01:04]} 7. a4 $1 {[%emt 0:00:09][%mdl 4] is currently scoring better than 7.h3. C55: Two Knights: 4 d3, 4 d4 exd4 5 e5 and Max Lange Attack.} Nb4 {[%emt 0:03:40]} 8. Ne2 {[%emt 0:05:34]} c5 {[%emt 0:01:42]} 9. c3 {[%emt 0:04:09] White has an edge.} Nc6 {[%emt 0:00:05]} 10. Ng3 {[%emt 0:00:13]} h6 {[%emt 0:03:47]} 11. Re1 $146 {[%emt 0:02:29]} (11. h3 a6 12. Bd2 Be6 13. Bxe6 fxe6 14. b4 cxb4 15. cxb4 b5 16. Qb3 Qd7 17. Ra2 {½-½ Dominguez Perez,L (2739)-Caruana,F (2782) FIDE World Cup 2023 (6.1)}) 11... Kh8 {[%emt 0:08:01]} 12. Bd2 {[%emt 0:03:54]} Nh7 {[%emt 0:10:55]} 13. h3 {[%emt 0:07:05]} a6 {[%emt 0:05:40]} 14. b4 {[%emt 0:09:18]} cxb4 {[%emt 0:02:41]} 15. cxb4 {[%emt 0:02:52]} Ng5 {[%emt 0:02:49]} 16. Bxg5 {[%emt 0:01:39]} Bxg5 {[%emt 0:02:06]} 17. b5 {[%emt 0:00:15]} Na5 {[%emt 0:12:04]} 18. bxa6 {[%emt 0:05:45]} bxa6 {[%emt 0:01:38]} 19. Bd5 {[%emt 0:00:11]} Bb7 {[%emt 0:05:42]} 20. Rb1 {[%emt 0:03:29] White is more active.} Bxd5 {[%emt 0:03:21]} 21. exd5 {[%emt 0:00:56]} f5 {[%emt 0:00:19]} ({Black should try} 21... Bf6) 22. Nxg5 $16 {[%emt 0:02:27]} Qxg5 {[%emt 0:00:04]} 23. Rb6 {[%emt 0:00:34]} Qd8 {[%emt 0:12:30] Black is weak on the light squares} 24. Qb1 {[%emt 0:00:41]} Rc8 {[%emt 0:00:03]} 25. Qb4 {[%emt 0:06:15]} ({But not} 25. Rxa6 $6 Rb8 26. Qc2 Nb3 $16) 25... Rc5 {[%emt 0:00:05]} 26. Rxa6 {[%emt 0:01:05]} Qc7 {[%emt 0:02:23][%cal Of8b8]} 27. d4 {[%emt 0:05:13]} (27. Rb1 $18) 27... exd4 {[%emt 0:08:31] Black cannot hold the game after this.} (27... Rxd5 $16 28. dxe5 Nc6) 28. Qxd4 $18 {[%emt 0:00:31]} Nb3 {[%emt 0:00:16] [#]} 29. Qb2 {[%emt 0:03:32]} Na5 {[%emt 0:03:52]} 30. Nh5 {[%emt 0:08:43][%cal Oa6d6] Hoping for Rxd6!.} f4 $2 {[%emt 0:02:36] [#]} (30... Nc4 31. Qd4 Ne5) 31. Rxd6 $1 {[%emt 0:04:34] White is clearly winning.} Rc3 {[%emt 0:03:08] [#]} (31... Kh7 32. Qb1+) 32. Rd7 $3 {[%emt 0:03:01][%mdl 512]} Qxd7 {[%emt 0:02:06]} 33. Qxc3 {[%emt 0:00:05]} Rf5 {[%emt 0:00:06]} 34. Nxg7 {[%emt 0:01:59]} Qxg7 {[%emt 0:00:10]} 35. Qxa5 {[%emt 0:00:07] Weighted Error Value: White=0.25 (precise) /Black=0.71  Mistake:       	White=1     	Black=3      Inaccurate:     	White=1     	Black=1      OK:         	White=12    	Black=8      Best:        	White=1     	---        Brilliant:      	White=1     	---} 1-0

[Event "EICC 2025"]
[Site "Eforie-Nord"]
[Date "2025.03.16"]
[Round "2.4"]
[White "Sowinski, Pawel"]
[Black "Sanal, Vahap"]
[Result "1/2-1/2"]
[Annotator "ChessBase"]
[ECO "E15"]
[WhiteElo "2420"]
[BlackElo "2557"]
[PlyCount "131"]
[EventDate "2025.03.14"]
[EventType "swiss"]
[EventCountry "ROU"]
[SourceTitle "playchess.com"]
[Source "ChessBase"]
[SourceQuality "1"]
[TimeControl "40/5400+30:1800+30"]

1. Nf3 {[%emt 0:00:03]} d5 {[%emt 0:01:24]} 2. g3 {[%emt 0:00:07]} Nf6 {[%emt 0:00:21]} 3. Bg2 {[%emt 0:00:11]} e6 {[%emt 0:00:11]} 4. O-O {[%emt 0:00:16]} Be7 {[%emt 0:01:23]} 5. d4 {[%emt 0:00:26]} O-O {[%emt 0:00:19]} 6. c4 {[%emt 0:00:21]} a5 {[%emt 0:01:00]} 7. Qc2 {[%emt 0:01:28]} c6 {[%emt 0:02:22]} 8. Rd1 {[%emt 0:00:23]} b6 {[%emt 0:15:27]} 9. Bf4 {[%emt 0:15:06]} Ba6 {[%emt 0:07:52]} 10. Ne5 {[%emt 0:08:23]} Ra7 {[%emt 0:05:17]} 11. b3 {[%emt 0:07:31]} b5 {[%emt 0:07:43]} 12. Nd2 {[%emt 0:05:05]} Nh5 {[%emt 0:02:34]} 13. Be3 {[%emt 0:03:38]} Rc7 {[%emt 0:03:38]} 14. Ndf3 {[%emt 0:10:05]} Rc8 {[%emt 0:05:31]} 15. h4 {[%emt 0:14:13]} Nf6 {[%emt 0:04:23]} 16. Ng5 {[%emt 0:07:47]} Bd6 {[%emt 0:10:14]} 17. Bh3 {[%emt 0:01:02]} Qe7 {[%emt 0:03:54]} 18. Nexf7 {[%emt 0:02:40]} Rxf7 {[%emt 0:02:21]} 19. Bxe6 {[%emt 0:00:12]} Rcf8 {[%emt 0:00:19]} 20. cxd5 {[%emt 0:01:09]} cxd5 {[%emt 0:00:09]} 21. Qf5 {[%emt 0:03:11]} g6 {[%emt 0:04:45]} 22. Qf3 {[%emt 0:00:05]} Ne4 {[%emt 0:04:52]} 23. Bxf7+ {[%emt 0:10:04]} Rxf7 {[%emt 0:00:05]} 24. Nxf7 {[%emt 0:00:14]} Qxf7 {[%emt 0:00:06]} 25. Qxf7+ {[%emt 0:01:56]} Kxf7 {[%emt 0:00:02]} 26. Bf4 {[%emt 0:00:22]} Bxf4 {[%emt 0:00:48]} 27. gxf4 {[%emt 0:00:03]} b4 {[%emt 0:01:15]} 28. e3 {[%emt 0:00:32]} Nc3 {[%emt 0:02:21]} 29. Rd2 {[%emt 0:00:57]} Bc8 {[%emt 0:01:35]} 30. f3 {[%emt 0:04:20]} Bf5 {[%emt 0:00:51]} 31. Rb2 {[%emt 0:01:27]} Nb5 {[%emt 0:05:15]} 32. Rc1 {[%emt 0:01:10]} Nc3 {[%emt 0:00:09]} 33. Ra1 {[%emt 0:00:44]} Nb5 {[%emt 0:00:02]} 34. h5 {[%emt 0:01:13]} gxh5 {[%emt 0:01:36]} 35. Rh2 {[%emt 0:00:03]} Nc6 {[%emt 0:01:20]} 36. Rc1 {[%emt 0:01:24]} Nc3 {[%emt 0:00:19]} 37. a3 {[%emt 0:00:28]} Bg6 {[%emt 0:02:52]} 38. axb4 {[%emt 0:00:04]} axb4 {[%emt 0:00:02]} 39. Ra1 {[%emt 0:00:13]} Ne7 {[%emt 0:00:03]} 40. Ra7 {[%emt 0:00:51]} Ke6 {[%emt 0:01:32]} 41. Kf2 {[%emt 0:03:55]} Nd1+ {[%emt 0:05:54]} 42. Ke1 {[%emt 0:01:43]} Nc3 {[%emt 0:00:13]} 43. Rh1 {[%emt 0:05:11]} Nf5 {[%emt 0:08:35]} 44. Kd2 {[%emt 0:04:37]} h4 {[%emt 0:06:24]} 45. Rb7 {[%emt 0:01:20]} Bh5 {[%emt 0:07:54]} 46. Rh3 {[%emt 0:04:06]} Nb1+ {[%emt 0:02:05]} 47. Kd3 {[%emt 0:02:25]} Ng3 {[%emt 0:02:31]} 48. e4 {[%emt 0:02:36]} Bxf3 {[%emt 0:00:51]} 49. f5+ {[%emt 0:00:45]} Kf6 {[%emt 0:00:05]} 50. e5+ {[%emt 0:01:21]} Kxf5 {[%emt 0:00:31]} 51. Rf7+ {[%emt 0:01:16]} Kg4 {[%emt 0:00:01]} 52. Rxh4+ {[%emt 0:06:34]} Kxh4 {[%emt 0:00:03]} 53. Rxf3 {[%emt 0:00:06]} Nc3 {[%emt 0:00:31]} 54. e6 {[%emt 0:00:05]} Nce4 {[%emt 0:00:49]} 55. e7 {[%emt 0:00:12]} Nd6 {[%emt 0:00:02]} 56. Rf6 {[%emt 0:01:23]} Nge4 {[%emt 0:00:08]} 57. Rf8 {[%emt 0:00:18]} h5 {[%emt 0:00:46]} 58. e8=Q {[%emt 0:00:25]} Nxe8 {[%emt 0:00:02]} 59. Rxe8 {[%emt 0:00:05]} Kg4 {[%emt 0:03:08]} 60. Ke3 {[%emt 0:00:03]} h4 {[%emt 0:00:13]} 61. Rg8+ {[%emt 0:00:14]} Ng5 {[%emt 0:00:19]} 62. Kf2 {[%emt 0:01:06]} Kf4 {[%emt 0:02:53]} 63. Rh8 {[%emt 0:01:45]} Ne4+ {[%emt 0:00:44]} 64. Kg2 {[%emt 0:00:44]} Ke3 {[%emt 0:00:22]} 65. Rxh4 {[%emt 0:00:03]} Kd3 {[%emt 0:00:42]} 66. Rh5 {[%emt 0:00:38]} 1/2-1/2

[Event "EICC 2025"]
[Site "Eforie-Nord"]
[Date "2025.03.16"]
[Round "2.5"]
[White "Samunenkov, Ihor"]
[Black "Atakishiyev, Elmar"]
[Result "1-0"]
[Annotator "ChessBase"]
[ECO "B06"]
[WhiteElo "2556"]
[BlackElo "2407"]
[PlyCount "157"]
[EventDate "2025.03.14"]
[EventType "swiss"]
[EventCountry "ROU"]
[SourceTitle "playchess.com"]
[Source "ChessBase"]
[SourceQuality "1"]
[TimeControl "40/5400+30:1800+30"]

1. e4 {[%emt 0:00:05]} c5 {[%emt 0:00:15]} 2. c3 {[%emt 0:00:08]} d5 {[%emt 0:00:08]} 3. exd5 {[%emt 0:00:09]} Qxd5 {[%emt 0:00:09]} 4. d4 {[%emt 0:00:08]} g6 {[%emt 0:00:12]} 5. Nf3 {[%emt 0:00:15]} Bg7 {[%emt 0:00:09]} 6. Nbd2 {[%emt 0:00:09]} cxd4 {[%emt 0:02:58]} 7. Bc4 {[%emt 0:00:08]} Qd8 {[%emt 0:02:50]} 8. Nxd4 {[%emt 0:00:11]} Nf6 {[%emt 0:02:22]} 9. O-O {[%emt 0:00:13]} O-O {[%emt 0:00:18]} 10. N2f3 {[%emt 0:00:10]} a6 {[%emt 0:08:54]} 11. Bf4 {[%emt 0:09:48]} Nbd7 {[%emt 0:12:44]} 12. Qe2 {[%emt 0:05:14]} Nb6 {[%emt 0:09:15]} 13. Bb3 {[%emt 0:01:27]} Nbd5 {[%emt 0:02:56]} 14. Be5 {[%emt 0:02:01]} e6 {[%emt 0:03:59]} 15. c4 {[%emt 0:05:37]} Ne7 {[%emt 0:02:01]} 16. c5 {[%emt 0:02:26]} Ned5 {[%emt 0:01:15]} 17. Rfd1 {[%emt 0:12:24]} Bd7 {[%emt 0:02:04]} 18. Bd6 {[%emt 0:05:13]} Re8 {[%emt 0:01:04]} 19. Ne5 {[%emt 0:00:14]} b6 {[%emt 0:13:26]} 20. Rac1 {[%emt 0:09:25]} bxc5 {[%emt 0:00:06]} 21. Bxc5 {[%emt 0:00:10]} Nh5 {[%emt 0:11:50]} 22. Qe4 {[%emt 0:07:03]} Nhf6 {[%emt 0:02:28]} 23. Qe2 {[%emt 0:06:45]} Nh5 {[%emt 0:00:14]} 24. g3 {[%emt 0:00:53]} Nhf4 {[%emt 0:06:16]} 25. Qe1 {[%emt 0:08:40]} Nh5 {[%emt 0:02:08]} 26. Nc4 {[%emt 0:08:35]} Qb8 {[%emt 0:07:03]} 27. Nd6 {[%emt 0:07:20]} Rd8 {[%emt 0:00:46]} 28. Rd3 {[%emt 0:03:03]} Rf8 {[%emt 0:04:50]} 29. Nxf7 {[%emt 0:02:27]} Bxd4 {[%emt 0:01:45]} 30. Nh6+ {[%emt 0:02:08]} Kg7 {[%emt 0:00:02]} 31. Rxd4 {[%emt 0:01:17]} Kxh6 {[%emt 0:00:18]} 32. Bxf8+ {[%emt 0:00:56]} Qxf8 {[%emt 0:00:01]} 33. Qd2+ {[%emt 0:00:11]} Kg7 {[%emt 0:01:25]} 34. Bxd5 {[%emt 0:00:24]} exd5 {[%emt 0:00:11]} 35. Rc7 {[%emt 0:00:09]} Nf6 {[%emt 0:00:45]} 36. Rxd5 {[%emt 0:00:41]} Nxd5 {[%emt 0:00:14]} 37. Rxd7+ {[%emt 0:00:08]} Ne7 {[%emt 0:00:12]} 38. Qd4+ {[%emt 0:01:46]} Kf7 {[%emt 0:01:08]} 39. Qd5+ {[%emt 0:00:16]} Kf6 {[%emt 0:00:28]} 40. Qd6+ {[%emt 0:01:34]} Kf7 {[%emt 0:00:10]} 41. Rxe7+ {[%emt 0:14:34]} Qxe7 {[%emt 0:00:00]} 42. Qd5+ {[%emt 0:00:05]} Qe6 {[%emt 0:00:14]} 43. Qb7+ {[%emt 0:00:12]} Kf6 {[%emt 0:00:09]} 44. Qxa8 {[%emt 0:00:16]} Qxa2 {[%emt 0:00:18]} 45. Qf8+ {[%emt 0:08:29]} Ke5 {[%emt 0:00:15]} 46. Qe7+ {[%emt 0:03:09]} Kf5 {[%emt 0:00:31]} 47. Qxh7 {[%emt 0:02:03]} Qb1+ {[%emt 0:04:35]} 48. Kg2 {[%emt 0:00:11]} Qe4+ {[%emt 0:00:02]} 49. f3 {[%emt 0:00:21]} Qe2+ {[%emt 0:00:23]} 50. Kh3 {[%emt 0:00:24]} Qxb2 {[%emt 0:00:56]} 51. Qf7+ {[%emt 0:02:02]} Qf6 {[%emt 0:00:05]} 52. Qd5+ {[%emt 0:00:11]} Qe5 {[%emt 0:00:08]} 53. Qd3+ {[%emt 0:00:14]} Kf6 {[%emt 0:00:16]} 54. Qxa6+ {[%emt 0:00:06]} Kg7 {[%emt 0:00:01]} 55. Qb7+ {[%emt 0:02:15]} Kh6 {[%emt 0:00:27]} 56. Qe4 {[%emt 0:01:23]} Qb2 {[%emt 0:00:13]} 57. f4 {[%emt 0:01:01]} Qf2 {[%emt 0:00:11]} 58. Qg2 {[%emt 0:01:24]} Qe1 {[%emt 0:00:22]} 59. Qf3 {[%emt 0:00:13]} Qb1 {[%emt 0:00:25]} 60. g4 {[%emt 0:00:44]} Qc2 {[%emt 0:02:29]} 61. Kg3 {[%emt 0:00:29]} Qb1 {[%emt 0:00:03]} 62. h4 {[%emt 0:00:13]} Qg1+ {[%emt 0:00:28]} 63. Kh3 {[%emt 0:00:06]} Kg7 {[%emt 0:00:03]} 64. g5 {[%emt 0:01:01]} Qe1 {[%emt 0:00:04]} 65. h5 {[%emt 0:01:26]} gxh5 {[%emt 0:03:18]} 66. f5 {[%emt 0:00:05]} Qb4 {[%emt 0:02:13]} 67. Qe2 {[%emt 0:00:39]} Kf8 {[%emt 0:03:44]} 68. f6 {[%emt 0:00:30]} Qb7 {[%emt 0:02:19]} 69. Kg3 {[%emt 0:00:45]} Qb4 {[%emt 0:00:22]} 70. Qf3 {[%emt 0:00:35]} Kg8 {[%emt 0:04:04]} 71. g6 {[%emt 0:00:21]} Qd6+ {[%emt 0:00:10]} 72. Kh3 {[%emt 0:00:29]} Qe6+ {[%emt 0:02:22]} 73. Kg2 {[%emt 0:00:06]} Qa2+ {[%emt 0:01:56]} 74. Kg3 {[%emt 0:00:21]} h4+ {[%emt 0:08:07]} 75. Kg4 {[%emt 0:00:07]} Qc4+ {[%emt 0:00:17]} 76. Qf4 {[%emt 0:00:24]} Qc8+ {[%emt 0:04:39]} 77. Kh5 {[%emt 0:00:32]} Qc5+ {[%emt 0:00:39]} 78. Kh6 {[%emt 0:00:32]} Qf8+ {[%emt 0:00:21]} 79. g7 {[%emt 0:00:09]} 1-0

[Event "EICC 2025"]
[Site "Eforie-Nord"]
[Date "2025.03.16"]
[Round "2.5"]
[White "Castellanos Rodriguez, Renier"]
[Black "Anton Guijarro, David"]
[Result "0-1"]
[Annotator "TA"]
[ECO "C54"]
[WhiteElo "2478"]
[BlackElo "2663"]
[PlyCount "146"]
[EventDate "2025.03.14"]
[EventType "swiss"]
[EventCountry "ROU"]
[SourceTitle "playchess.com"]
[Source "ChessBase"]
[SourceQuality "1"]
[TimeControl "40/5400+30:1800+30"]

{[%evp 10,146,16,17,18,5,14,0,14,27,16,21,20,16,38,25,35,0,8,0,0,-18,-13,-8,0,-34,-24,-67,-65,-77,-80,-96,-107,-117,-119,-120,-123,-105,-102,-112,-93,-102,-107,-126,-76,-70,-58,-75,-77,-95,-110,-111,-114,-102,-91,-94,-72,-84,-45,-57,-14,-18,-10,-81,-63,-83,-81,-79,-87,-81,-77,-124,-94,-98,-104,-106,-76,-82,-85,-113,-66,-76,-66,-51,-51,-51,-53,-64,-50,-62,-29,-29,-11,-12,-8,-14,-10,-33,0,0,0,0,0,-5,-1,-2,0,-19,0,-9,-8,-84,-62,-86,-83,-85,-89,-92,-34,-207,-164,-212,-218,-1304,-1180,-2378,-1595,-4631,-4631,-4618,-2743,-1233,-870,-29975,-29978,-29978,-29978,-29983,-29982]} 1. e4 {[%emt 0:00:04]} e5 {[%emt 0:00:12]} 2. Nf3 {[%emt 0:00:13]} Nc6 {[%emt 0:00:07]} 3. Bc4 {[%emt 0:00:34]} Bc5 {[%emt 0:00:28]} 4. d3 {[%emt 0:00:28]} Nf6 {[%emt 0:01:03]} 5. O-O {[%emt 0:00:48]} d6 {[%emt 0:00:59]} 6. c3 {[%emt 0:00:34]} a5 {[%emt 0:00:46] C54: Giuoco Piano: 4 c3 Nf6, main lines with 5 d4 and 5 d3.} 7. Nbd2 {[%emt 0:01:13][%cal Bb1d2,Bd2f1,Bf1g3][%mdl 32]} O-O {[%emt 0:00:45]} 8. h3 {[%emt 0:00:42]} h6 {[%emt 0:00:43] The position is equal.} 9. Re1 {[%emt 0:00:35]} Be6 {[%emt 0:01:12]} 10. Bb5 {[%emt 0:01:51]} Nd7 {[%emt 0:01:07]} 11. Nf1 {[%emt 0:06:17] White wants to play d4.} d5 {[%emt 0:04:17]} 12. Ng3 {[%emt 0:18:06]} dxe4 {[%emt 0:08:57]} 13. dxe4 {[%emt 0:02:28]} Qf6 {[%emt 0:01:25]} 14. Qe2 {[%emt 0:02:06]} Rfd8 {[%emt 0:07:18]} 15. Be3 {[%emt 0:01:40]} Bxe3 {[%emt 0:06:23]} 16. Qxe3 {[%emt 0:00:26]} a4 {[%emt 0:05:05]} 17. Bxc6 $146 {[%emt 0:12:03]} (17. Red1 Nb6 18. Bxc6 Rxd1+ 19. Rxd1 bxc6 20. Qc5 Bxa2 21. Nxe5 Bb3 22. Rd4 {1-0 Zhigalko,S (2572)-Aradhya,G (2384) Titled Tuesday intern op 28th Nov Early blitz 2023 (3)}) 17... bxc6 {[%emt 0:00:07]} 18. b3 {[%emt 0:00:15]} axb3 {[%emt 0:07:39]} 19. axb3 {[%emt 0:00:20]} Bxb3 {[%emt 0:02:25]} 20. Rxa8 {[%emt 0:07:42]} Rxa8 {[%emt 0:00:06]} 21. Rb1 {[%emt 0:00:09]} Be6 {[%emt 0:01:48]} 22. Rb7 {[%emt 0:01:24]} Qd8 {[%emt 0:06:58]} 23. Ra7 {[%emt 0:02:52]} Rb8 {[%emt 0:02:21]} 24. Qc1 {[%emt 0:03:16]} f6 {[%emt 0:03:42]} 25. Qa3 {[%emt 0:02:56]} Nb6 {[%emt 0:03:42]} 26. Qa5 {[%emt 0:05:35]} Qd6 {[%emt 0:03:24]} (26... Nc8 $142 27. Ra8 (27. Rxc7 $2 Rb6 $19) 27... Rb1+ 28. Kh2 Rb2) 27. Nh4 {[%emt 0:02:49][%cal Oc3c4]} Qd7 {[%emt 0:09:27]} 28. Nhf5 {[%emt 0:06:18][%cal Oc3c4]} h5 {[%emt 0:04:18]} 29. Kh2 {[%emt 0:03:25]} g6 {[%emt 0:01:04]} 30. Nh4 {[%emt 0:00:45]} Kg7 {[%emt 0:02:59]} 31. Nf3 {[%emt 0:01:02][%cal Of3e5]} Qd6 {[%emt 0:01:27]} 32. Nf1 {[%emt 0:01:23]} c5 {[%emt 0:01:55]} 33. Ne3 {[%emt 0:02:14][%cal Oc3c4]} Rd8 {[%emt 0:01:14]} 34. c4 {[%emt 0:02:41][%cal Of3d2]} Rd7 {[%emt 0:03:56]} 35. Qb5 {[%emt 0:01:19]} Rf7 {[%emt 0:04:27]} 36. Ra5 {[%emt 0:03:06]} (36. Kg1 $11) 36... Qd3 $17 {[%emt 0:01:31][%csl LRc4,LRe4]} 37. Qc6 {[%emt 0:01:30]} Nxc4 {[%emt 0:01:31]} 38. Nxc4 {[%emt 0:03:43]} Qxc4 {[%emt 0:00:48]} 39. Rxc5 {[%emt 0:00:43]} Qb4 {[%emt 0:00:56]} 40. Nh4 {[%emt 0:03:38]} (40. Rb5 $142 Qa4 41. Rc5 Qxc6 42. Rxc6) 40... Re7 {[%emt 0:01:22]} 41. Rc3 {[%emt 0:01:17]} g5 {[%emt 0:12:36]} 42. Nf3 {[%emt 0:00:47]} Bf7 {[%emt 0:00:40]} 43. h4 {[%emt 0:02:57]} g4 {[%emt 0:00:30][%cal Of7e8] ...Be8! would now be deadly.} 44. Ng1 {[%emt 0:03:19]} Qb6 {[%emt 0:03:44]} (44... Re6 $17 45. Qc4 Qd6) 45. Ne2 {[%emt 0:01:22]} Qxc6 {[%emt 0:06:16]} (45... Bg6 {is more complex.} 46. Ng3 Qxf2 47. Rb3 Qa2) 46. Rxc6 {[%emt 0:00:08][%mdl 4096] Endgame KRB-KRN. Black is a pawn up.} Be8 {[%emt 0:00:02]} 47. Rc5 {[%emt 0:00:58]} c6 {[%emt 0:00:26]} 48. Ng3 {[%emt 0:00:52] aiming for Nf5+.} Rc7 {[%emt 0:00:26]} 49. f3 {[%emt 0:02:21]} gxf3 {[%emt 0:00:30]} 50. gxf3 {[%emt 0:00:09]} Bg6 {[%emt 0:01:01]} 51. Kg2 $1 {[%emt 0:05:21]} Kf7 {[%emt 0:00:23]} 52. Kf2 {[%emt 0:01:12]} Ke6 {[%emt 0:00:18]} 53. Nf1 {[%emt 0:03:11]} Kd6 {[%emt 0:03:03]} 54. Ra5 {[%emt 0:00:41]} Bf7 {[%emt 0:00:05]} 55. Ng3 {[%emt 0:01:42]} Bg6 {[%emt 0:01:06]} 56. Nf1 {[%emt 0:00:40]} Rb7 {[%emt 0:01:32]} 57. Ne3 {[%emt 0:01:02]} Bf7 {[%emt 0:02:30]} 58. Nf5+ {[%emt 0:01:51]} Kd7 {[%emt 0:00:06]} 59. Kg3 {[%emt 0:01:28]} Be6 {[%emt 0:01:18]} 60. Ne3 {[%emt 0:02:11]} (60. Ng7 $11 {keeps the balance.}) 60... Kd6 {[%emt 0:00:49]} 61. Kf2 {[%emt 0:00:55]} Rb2+ {[%emt 0:00:34]} 62. Kg3 {[%emt 0:00:08]} Re2 {[%emt 0:00:59]} 63. Ra3 {[%emt 0:01:55]} Kc5 {[%emt 0:00:55] Black is more active.} (63... c5 $17 64. Ra6+ Kd7) 64. Rc3+ $2 {[%emt 0:01:46] [#] This costs White the game.} (64. Rd3 $1 $15) 64... Kb5 $1 $19 {[%emt 0:00:35]} 65. Rd3 {[%emt 0:01:04]} (65. Nf5 $142) 65... c5 {[%emt 0:00:47]} 66. Nd5 $2 {[%emt 0:00:12] [#]} (66. Nd1 Kb4 67. Rd6) 66... c4 $1 {[%emt 0:00:57]} 67. Nc3+ {[%emt 0:03:20]} Kb4 {[%emt 0:00:31]} 68. Rd6 {[%emt 0:00:06]} Kxc3 {[%emt 0:00:05]} 69. Rxe6 {[%emt 0:00:03]} Kd2 {[%emt 0:00:33]} 70. Rd6+ {[%emt 0:00:38]} Ke3 {[%emt 0:00:23] ( -> ...c3)} 71. Rxf6 {[%emt 0:00:37]} c3 {[%emt 0:00:42] Black mates.} 72. Rc6 {[%emt 0:00:15]} c2 {[%emt 0:00:17]} 73. Kh3 {[%emt 0:00:41]} Kd2 {[%emt 0:00:26] Weighted Error Value: White=0.13 (very precise) /Black=0.10 (very precise)   Loses game:     	White=1     	---        Mistake:       	White=5     	Black=3      Inaccurate:     	White=5     	Black=4      OK:         	White=20    	Black=16     Best:        	White=1     	Black=5      Strong:       	White=1     	Black=2} (73... Kxf3 $2 74. Rxc2 Re1 75. Rc3+ Kf4 (75... Kxe4 76. Rc8 $17) 76. Kg2 $19) 0-1